bitfinex-derivatives/quotes_SOLF0:USTF0_20241203
["timestamp","ask_amount","ask_price","bid_price","bid_amount"]
[1733209955423,2.199,227.34,227.25,19.50900646]
[1733209955922,3.02,227.35,227.25,19.50900646]
[1733209956126,2.1991,227.33,227.25,19.50900646]
[1733209956921,2.1992,227.32,227.25,21.70880646]
[1733209957118,3.02,227.35,227.25,19.50900646]
[1733209958119,2.1991,227.33,227.26,2.1997]
[1733209958325,2.1991,227.33,227.25,19.50900646]
[1733209958627,2.1986,227.38,227.27,2.1996]
[1733209958818,3.1,227.37,227.27,2.1996]
[1733209959022,3.1,227.4,227.29,19.50900646]
[1733209959227,3.1,227.44,227.31,2.1993]
[1733209959421,19.50900646,227.52,227.33,19.50900646]
[1733209959621,19.50900646,227.52,227.35,2.1989]
[1733209959622,2.1979,227.46,227.35,2.1989]
[1733209959828,3.1,227.51,227.33,19.50900646]
[1733209960128,3.1,227.5,227.33,19.50900646]
[1733209960617,3.1,227.5,227.34,1.9092]
[1733209961226,19.50900646,227.48,227.3,3.7719]
[1733209961421,2.1988,227.36,227.3,3.7719]
[1733209961628,3.1,227.37,227.3,3.7719]
[1733209961823,3.1,227.4,227.3,3.7719]
[1733209962024,2.1985,227.39,227.3,5.9712]
[1733209962222,2.1985,227.39,227.3,3.7719]
[1733209962920,2.1985,227.39,227.31,2.1992]
[1733209964832,2.1986,227.38,227.31,2.1992]
[1733209965830,3.1,227.41,227.3,1.8883]
[1733209966529,3.1,227.41,227.24,19.50900646]
[1733209966733,2.1988,227.36,227.25,2.1998]
[1733209967034,3.1,227.41,227.24,19.50900646]
[1733209967430,3.1,227.41,227.23,3.6249]
[1733209967626,19.50900646,227.37,227.17,1.9092]
[1733209967826,22.60900646,227.41,227.2,19.50900646]
[1733209968034,2.1992,227.32,227.23,2.2]
[1733209968334,3.1,227.31,227.23,2.2]
[1733209968534,3.1,227.31,227.22,1.7917]
[1733209968535,3.1,227.31,227.24,2.1999]
[1733209969037,3.1,227.31,227.26,2.1997]
[1733209969232,3.1,227.35,227.24,19.50900646]
[1733209969937,3.1,227.35,227.27,2.1996]
[1733209970132,3.1,227.35,227.24,19.50900646]
[1733209970635,3.1,227.35,227.29,2.1994]
[1733209971837,5.2989,227.35,227.29,2.1994]
[1733209972034,3.1,227.35,227.27,2.1996]
[1733209972336,2.199,227.34,227.24,19.50900646]
[1733209972537,2.199,227.34,227.28,2.1995]
[1733209973337,3.1,227.35,227.3,2.1994]
[1733209974034,3.1,227.35,227.31,2.1992]
[1733209974237,3.1,227.35,227.24,19.50900646]
[1733209974837,3.1,227.35,227.26,2.1997]
[1733209975341,3.1,227.35,227.27,2.1996]
[1733209975342,2.1991,227.33,227.27,2.1996]
[1733209976236,3.1,227.38,227.24,19.50900646]
[1733209976636,3.1,227.38,227.28,19.50900646]
[1733209976837,2.1988,227.36,227.31,2.1992]
[1733209977032,1.8831,227.44,227.28,19.50900646]
[1733209977234,3.1,227.43,227.28,19.50900646]
[1733209977436,3.1,227.43,227.29,1.7961]
[1733209978041,3.1,227.43,227.33,2.199]
[1733209978042,2.1986,227.38,227.33,2.199]
[1733209979144,3.1,227.43,227.33,2.199]
[1733209979344,2.1985,227.39,227.33,2.199]
[1733209979540,2.1985,227.39,227.34,2.1989]
[1733209979846,3.1,227.43,227.29,1.7961]
[1733209980141,2.1984,227.4,227.3,1.821]
[1733209980542,2.1984,227.4,227.33,2.1991]
[1733209980842,2.1986,227.39,227.3,1.821]
[1733209981542,3.1,227.43,227.31,13.17979737]
[1733209981745,3.1,227.43,227.29,1.7961]
[1733209981746,16.27979737,227.43,227.29,1.7961]
[1733209981939,1.8831,227.44,227.33,2.1991]
[1733209982140,1.8831,227.44,227.33,13.17979737]
[1733209982141,2.92,227.44,227.33,13.17979737]
[1733209982341,2.92,227.44,227.36,13.17979737]
[1733209983841,2.92,227.44,227.34,1.8155]
[1733209984046,2.92,227.44,227.31,2.1992]
[1733209984454,2.92,227.44,227.3,14.92259737]
[1733209984745,2.92,227.44,227.33,2.199]
[1733209985142,2.1983,227.42,227.3,14.92259737]
[1733209985338,2.92,227.44,227.3,14.92259737]
[1733209985541,2.92,227.44,227.33,13.17979737]
[1733209985749,2.1982,227.43,227.36,2.1988]
[1733209985943,2.92,227.44,227.36,13.17979737]
[1733209987142,2.92,227.44,227.33,13.17979737]
[1733209987943,2.92,227.44,227.35,2.1989]
[1733209987944,2.1983,227.41,227.35,2.1989]
[1733209988139,2.92,227.44,227.35,2.1989]
[1733209988745,2.92,227.44,227.34,2.199]
[1733209989248,2.92,227.44,227.31,2.1993]
[1733209989249,2.1986,227.39,227.31,2.1993]
[1733209989641,2.92,227.44,227.3,13.17979737]
[1733209989845,13.17979737,227.41,227.22,1.7903]
[1733209990146,13.17979737,227.41,227.24,13.17979737]
[1733209990347,13.17979737,227.38,227.24,13.17979737]
[1733209990546,13.17979737,227.35,227.21,13.17979737]
[1733209990748,2.1996,227.28,227.19,2.2004]
[1733209990945,2.92,227.27,227.18,13.38149737]
[1733209991543,2.92,227.27,227.18,0.2017]
[1733209992058,2.92,227.27,227.22,2.2001]
[1733209992954,2.92,227.27,227.18,0.2017]
[1733209993655,2.92,227.27,227.01,4.85455936]
[1733209993953,2.2003,227.2,227.07,2.2016]
[1733209994149,2.92,227.19,227.07,2.2016]
[1733209994450,2.92,227.18,227.06,21.10854199]
[1733209994656,2.92,227.17,227.02,21.10854199]
[1733209994856,21.10854199,227.22,227.02,21.10854199]
[1733209994857,2.92,227.16,227.02,21.10854199]
[1733209995053,3.5795,227.19,227.02,21.10854199]
[1733209995054,2.92,227.15,227.02,21.10854199]
[1733209995852,2.92,227.14,227.06,21.10854199]
[1733209997251,2.92,227.14,227.1,2.2012]
[1733209997452,2.92,227.18,227.1,21.10854199]
[1733209997653,2.92,227.17,227.1,21.10854199]
[1733209997853,21.10854199,227.34,227.1,21.10854199]
[1733209998054,2.92,227.33,227.1,21.10854199]
[1733209998250,2.1997,227.27,227.15,2.2008]
[1733209998456,2.92,227.33,227.07,2.92]
[1733209998457,2.92,227.26,227.14,21.10854199]
[1733209998661,2.92,227.25,227.14,21.10854199]
[1733209998860,21.10854199,227.34,227.14,21.10854199]
[1733209999158,2.92,227.33,227.18,21.10854199]
[1733209999354,5.1191,227.33,227.23,2.2]
[1733209999657,2.92,227.33,227.18,21.10854199]
[1733209999861,45.8,227.37,227.22,21.10854199]
[1733210000056,2.92,227.36,227.22,21.10854199]
[1733210000253,2.92,227.37,227.22,21.10854199]
[1733210000563,2.92,227.37,227.31,2.1992]
[1733210000757,2.92,227.37,227.26,21.10854199]
[1733210001258,2.92,227.37,227.3,2.1993]
[1733210001454,2.92,227.37,227.19,6.105]
[1733210001657,2.92,227.37,227.22,21.10854199]
[1733210002054,2.92,227.37,227.26,21.10854199]
[1733210002257,5.1187,227.37,227.3,2.1993]
[1733210003064,2.92,227.37,227.26,21.10854199]
[1733210003254,2.92,227.37,227.23,1.6482]
[1733210004563,2.1991,227.33,227.26,2.1997]
[1733210004865,2.92,227.37,227.23,1.6482]
[1733210005056,2.1995,227.29,227.23,2.2]
[1733210005261,2.92,227.31,227.19,6.105]
[1733210005562,2.92,227.3,227.19,3.185]
[1733210005757,2.92,227.29,227.14,21.10854199]
[1733210005966,2.92,227.28,227.14,21.10854199]
[1733210006261,2.92,227.27,227.14,21.10854199]
[1733210006467,2.92,227.26,227.1,21.10854199]
[1733210007160,2.92,227.26,227.09,2.2014]
[1733210007161,2.2006,227.18,227.09,2.2014]
[1733210007358,2.92,227.18,227.09,2.2014]
[1733210007559,2.92,227.18,227.07,3.175]
[1733210008161,2.2008,227.16,227.07,5.3765]
[1733210008361,2.92,227.18,227.07,3.76]
[1733210008664,2.92,227.18,227.07,1.5585]
[1733210009059,2.92,227.18,227.08,2.2015]
[1733210009256,2.92,227.18,227.02,21.10854199]
[1733210010667,2.92,227.18,226.98,21.10854199]
[1733210010867,2.92,227.18,226.94,21.10854199]
[1733210010868,21.10854199,227.16,226.94,21.10854199]
[1733210011059,2.92,227.18,226.98,21.10854199]
[1733210011263,2.2011,227.12,226.98,21.10854199]
[1733210011463,2.82,227.11,226.98,21.10854199]
[1733210011665,2.82,227.1,226.98,21.10854199]
[1733210011871,2.82,227.09,226.98,21.10854199]
[1733210012070,2.82,227.08,226.94,21.10854199]
[1733210012271,2.82,227.07,226.94,21.10854199]
[1733210012475,2.82,227.06,226.99,2.2023]
[1733210012766,2.82,227.06,226.94,21.10854199]
[1733210012963,2.82,227.06,226.91,3.2185]
[1733210013359,2.2022,227.01,226.92,2.203]
[1733210013563,2.82,227.0,226.91,3.2185]
[1733210013761,2.82,226.99,226.91,3.2185]
[1733210013961,2.82,226.98,226.91,1.5405]
[1733210014270,2.82,226.98,226.91,3.7436]
[1733210014465,2.82,226.98,226.86,22.76924199]
[1733210014870,2.82,226.98,226.9,2.2032]
[1733210015963,21.10854199,227.08,226.86,22.76924199]
[1733210016171,2.82,227.07,226.9,21.10854199]
[1733210016365,2.82,227.06,226.94,21.10854199]
[1733210016566,2.82,227.06,226.96,2.2026]
[1733210016869,2.2019,227.04,226.94,21.10854199]
[1733210017167,2.82,227.06,226.94,2.2028]
[1733210017372,2.2021,227.02,226.94,2.2028]
[1733210017566,2.2021,227.02,226.9,21.10854199]
[1733210017873,2.2021,227.02,226.93,2.2029]
[1733210018069,2.2021,227.02,226.9,21.10854199]
[1733210018470,2.82,227.06,226.9,21.10854199]
[1733210019765,2.82,227.06,226.89,2.82]
[1733210019972,2.82,227.06,226.86,1.6607]
[1733210020175,2.2022,227.01,226.89,21.10854199]
[1733210020374,2.82,227.0,226.89,21.10854199]
[1733210020768,2.2024,226.99,226.91,2.2031]
[1733210020973,2.82,227.0,226.89,21.10854199]
[1733210021174,1.5395,227.09,226.93,21.10854199]
[1733210021374,2.2018,227.05,226.98,2.2024]
[1733210021574,2.82,227.08,226.93,21.10854199]
[1733210022076,2.82,227.08,226.9,2.82]
[1733210022672,2.2022,227.01,226.94,2.2028]
[1733210022871,2.82,227.0,226.9,2.82]
[1733210023068,2.82,227.0,226.89,21.10854199]
[1733210024478,2.2026,226.97,226.89,21.10854199]
[1733210024773,2.82,227.0,226.81,21.10854199]
[1733210025073,23.92854199,227.0,226.79,21.10854199]
[1733210025379,2.2029,226.94,226.82,2.204]
[1733210025583,2.82,226.93,226.82,2.204]
[1733210025778,2.82,226.93,226.79,21.10854199]
[1733210025968,2.82,226.93,226.76,4.7681]
[1733210026472,2.82,226.93,226.78,2.2044]
[1733210026973,2.82,226.93,226.76,4.7681]
[1733210026974,2.2041,226.81,226.76,4.7681]
[1733210027176,2.82,226.8,226.69,1.5357]
[1733210027477,2.82,226.81,226.69,1.5357]
[1733210027680,2.82,226.81,226.72,21.10854199]
[1733210027881,2.82,226.85,226.72,21.10854199]
[1733210028076,2.82,226.85,226.76,21.10854199]
[1733210028276,2.82,226.89,226.76,21.10854199]
[1733210028681,2.82,226.89,226.77,1.5234]
[1733210029378,2.2036,226.87,226.81,2.2041]
[1733210030174,2.2037,226.85,226.77,1.5234]
[1733210030577,2.82,226.89,226.77,1.5234]
[1733210030778,2.2038,226.84,226.79,2.2043]
[1733210030976,2.82,226.89,226.77,1.5234]
[1733210031277,2.2042,226.8,226.69,1.5357]
[1733210031474,2.82,226.81,226.69,1.5357]
[1733210031680,2.2046,226.76,226.71,2.205]
[1733210031878,2.2046,226.76,226.69,1.5357]
[1733210032084,2.82,226.78,226.69,1.5357]
[1733210032380,2.2047,226.75,226.69,1.5357]
[1733210032781,2.2047,226.76,226.69,1.5357]
[1733210032977,2.82,226.78,226.69,1.5357]
[1733210033377,2.82,226.78,226.66,1.5234]
[1733210033580,2.82,226.78,226.61,2.82]
[1733210034682,2.2048,226.74,226.65,2.2056]
[1733210035073,2.2048,226.74,226.61,2.82]
[1733210035378,4.7012,226.83,226.64,21.10854199]
[1733210035685,2.82,226.82,226.68,21.10854199]
[1733210036381,2.2041,226.81,226.74,2.2048]
[1733210036883,2.82,226.82,226.64,21.10854199]
[1733210037582,2.82,226.82,226.68,21.10854199]
[1733210037777,2.82,226.82,226.69,3.1719]
[1733210037975,2.82,226.82,226.73,2.2049]
[1733210037976,2.2041,226.81,226.73,2.2049]
[1733210038380,2.82,226.82,226.69,4.7128]
[1733210038981,2.82,226.82,226.69,3.1719]
[1733210040375,2.2045,226.78,226.69,3.1719]
[1733210040576,21.10854199,226.8,226.6,22.64944199]
[1733210040972,2.2048,226.74,226.65,2.2057]
[1733210041179,2.82,226.73,226.65,2.2057]
[1733210041780,2.82,226.73,226.6,22.64944199]
[1733210042081,2.82,226.73,226.6,1.5409]
[1733210042476,2.2055,226.67,226.56,21.10854199]
[1733210042675,2.82,226.66,226.59,2.2062]
[1733210042874,2.82,226.66,226.47,3.1334]
[1733210043077,2.2064,226.58,226.5,2.2071]
[1733210043278,2.82,226.57,226.48,1.6168]
[1733210043579,2.82,226.57,226.52,2.2069]
[1733210043780,2.82,226.57,226.48,1.6168]
[1733210043978,2.82,226.57,226.47,3.1334]
[1733210044181,2.82,226.57,226.39,2.82]
[1733210044386,2.82,226.57,226.39,3.18]
[1733210044776,2.82,226.57,226.34,1.6811]
[1733210044777,21.10854199,226.56,226.34,1.6811]
[1733210045079,21.10854199,226.52,226.34,1.6811]
[1733210045277,2.82,226.55,226.34,1.6811]
[1733210045482,2.82,226.64,226.45,21.10854199]
[1733210045783,2.82,226.64,226.55,2.2066]
[1733210045975,45.36686168,226.78,226.35,45.9]
[1733210045976,2.82,226.69,226.53,21.10854199]
[1733210046179,2.82,226.73,226.53,21.10854199]
[1733210046381,2.82,226.73,226.57,21.10854199]
[1733210046685,2.82,226.79,226.61,21.10854199]
[1733210046878,5.0243,226.79,226.7,2.2051]
[1733210047077,2.2043,226.79,226.7,2.2051]
[1733210047278,2.82,226.81,226.65,23.92854199]
[1733210047472,21.10854199,226.88,226.69,21.10854199]
[1733210047783,21.10854199,226.88,226.65,2.82]
[1733210047784,2.82,226.87,226.73,21.10854199]
[1733210047983,2.82,226.88,226.79,2.2042]
[1733210048177,2.82,226.88,226.77,21.10854199]
[1733210048477,2.82,226.95,226.81,21.10854199]
[1733210048781,2.82,226.95,226.81,23.92854199]
[1733210048988,2.82,226.95,226.85,2.2037]
[1733210049183,2.82,226.95,226.85,21.10854199]
[1733210049586,2.82,226.95,226.81,2.82]
[1733210049587,2.82,227.0,226.88,2.2034]
[1733210049878,2.82,227.0,226.87,31.73900286]
[1733210050083,2.2025,226.98,226.87,31.73900286]
[1733210050480,2.2027,226.96,226.83,31.73900286]
[1733210050781,2.82,227.0,226.79,34.55900286]
[1733210050980,2.82,227.0,226.59,1.76565314]
[1733210050981,31.73900286,226.97,226.76,2.82]
[1733210051181,31.73900286,226.93,226.71,33.40590286]
[1733210051383,31.73900286,226.89,226.67,31.73900286]
[1733210051580,31.73900286,226.85,226.63,31.73900286]
[1733210051784,31.73900286,226.81,226.56,34.93080286]
[1733210051985,2.82,226.8,226.57,1.10357358]
[1733210052183,2.82,226.8,226.67,31.73900286]
[1733210052584,2.2045,226.77,226.67,31.73900286]
[1733210052780,2.82,226.8,226.64,2.82]
[1733210052992,45.88,226.88,226.67,31.73900286]
[1733210053185,2.82,226.87,226.67,31.73900286]
[1733210053487,2.82,226.87,226.7,2.2051]
[1733210053683,2.82,226.87,226.67,31.73900286]
[1733210054189,2.204,226.82,226.7,2.2052]
[1733210054488,2.82,226.81,226.67,31.73900286]
[1733210054683,2.82,226.8,226.65,2.2056]
[1733210054986,2.82,226.79,226.66,1.10309555]
[1733210055286,47.4448,226.88,226.6,1.6127]
[1733210055287,34.55900286,226.78,226.6,1.6127]
[1733210055488,2.82,226.77,226.61,5.87461096]
[1733210055688,2.82,226.77,226.6,1.6127]
[1733210055689,2.82,226.77,226.62,10.68871266]
[1733210055883,2.82,226.77,226.63,1.1032515]
[1733210056081,2.82,226.77,226.6,1.6127]
[1733210056282,2.82,226.77,226.61,2.86869698]
[1733210056584,2.82,226.77,226.62,1.10334499]
[1733210056788,2.82,226.77,226.63,1.10334499]
[1733210056985,2.82,226.77,226.6,1.6127]
[1733210057281,2.82,226.77,226.59,31.73900286]
[1733210057783,2.205,226.72,226.61,2.206]
[1733210057990,2.82,226.71,226.61,2.206]
[1733210058788,2.82,226.71,226.59,31.73900286]
[1733210059088,2.82,226.71,226.63,31.73900286]
[1733210059289,2.82,226.71,226.64,2.2057]
[1733210059485,2.82,226.71,226.63,31.73900286]
[1733210059685,2.82,226.76,226.63,31.73900286]
[1733210059884,2.82,226.8,226.57,1.6465]
[1733210060084,1.5751,226.76,226.49,0.12517081]
[1733210060393,34.75900286,226.75,226.54,31.73900286]
[1733210060591,2.2058,226.64,226.55,2.87005576]
[1733210060786,3.02,226.63,226.56,2.87005576]
[1733210061091,3.02,226.63,226.43,2.2078]
[1733210061092,2.2065,226.56,226.43,2.2078]
[1733210061284,31.73900286,226.63,226.44,1.1043291]
[1733210061285,3.02,226.55,226.44,1.1043291]
[1733210061481,3.02,226.54,226.45,1.1043291]
[1733210061685,3.02,226.62,226.49,2.2072]
[1733210061887,3.02,226.61,226.39,3.02]
[1733210062092,3.02,226.6,226.4,5.88881843]
[1733210062287,3.02,226.59,226.39,31.73900286]
[1733210062494,3.02,226.59,226.4,2.87163701]
[1733210062688,3.02,226.59,226.39,31.73900286]
[1733210062689,3.02,226.59,226.41,1.10447885]
[1733210062891,3.02,226.58,226.43,31.73900286]
[1733210063086,3.02,226.57,226.43,31.73900286]
[1733210063289,3.02,226.56,226.43,31.73900286]
[1733210063593,3.02,226.55,226.43,31.73900286]
[1733210063786,1.0,226.74,226.39,3.02]
[1733210063787,3.02,226.58,226.47,31.73900286]
[1733210063993,3.02,226.59,226.5,2.2071]
[1733210064195,31.73900286,226.68,226.47,31.73900286]
[1733210064396,3.02,226.67,226.47,31.73900286]
[1733210064591,2.2057,226.65,226.51,2.207]
[1733210064990,2.2061,226.61,226.48,2.2073]
[1733210065186,3.02,226.6,226.47,31.73900286]
[1733210065391,3.02,226.64,226.51,31.73900286]
[1733210065686,5.2257,226.65,226.51,31.73900286]
[1733210066087,3.02,226.65,226.51,31.73900286]
[1733210066289,3.02,226.65,226.54,2.2067]
[1733210066486,3.02,226.65,226.51,31.73900286]
[1733210067392,3.02,226.65,226.49,31.73900286]
[1733210067789,2.206,226.62,226.52,2.2069]
[1733210067993,3.02,226.65,226.52,2.2069]
[1733210068189,31.73900286,226.72,226.53,31.73900286]
[1733210068488,2.2053,226.69,226.53,34.75900286]
[1733210068697,3.02,226.71,226.57,31.73900286]
[1733210068993,3.02,226.71,226.61,31.73900286]
[1733210069302,3.02,226.82,226.65,31.73900286]
[1733210069597,3.02,226.82,226.65,34.75900286]
[1733210069999,2.2049,226.73,226.64,2.2057]
[1733210070301,3.02,226.74,226.61,31.73900286]
[1733210070594,3.02,226.74,226.65,2.2056]
[1733210071098,3.02,226.74,226.58,3.02]
[1733210071996,2.205,226.73,226.63,2.2058]
[1733210072201,3.02,226.74,226.61,31.73900286]
[1733210073395,1.5632,226.84,226.65,31.73900286]
[1733210073698,3.02,226.83,226.69,31.73900286]
[1733210074196,2.2041,226.81,226.69,31.73900286]
[1733210075099,2.2041,226.81,226.73,2.2049]
[1733210075396,5.2239,226.83,226.69,31.73900286]
[1733210075696,2.2039,226.83,226.69,31.73900286]
[1733210075900,2.204,226.82,226.69,31.73900286]
[1733210076497,2.2039,226.84,226.76,2.2046]
[1733210076796,3.02,226.85,226.69,31.73900286]
[1733210077098,3.02,226.85,226.73,31.73900286]
[1733210077598,3.02,226.85,226.73,19.55678526]
[1733210077795,1.664,226.91,226.73,19.55678526]
[1733210078097,3.02,226.88,226.77,19.55678526]
[1733210078291,2.2032,226.91,226.84,2.2038]
[1733210078600,3.02,226.93,226.81,19.55678526]
[1733210078992,3.02,226.93,226.78,1.5248]
[1733210079395,2.2037,226.86,226.78,1.5248]
[1733210079703,3.02,226.93,226.78,1.5248]
[1733210081005,2.2035,226.87,226.8,2.2042]
[1733210081193,2.2035,226.87,226.78,1.5248]
[1733210081194,3.02,226.93,226.78,1.5248]
[1733210081697,45.92,226.96,226.81,19.55678526]
[1733210081898,45.92,226.96,226.78,1.5248]
[1733210081899,1.6407,227.03,226.85,19.55678526]
[1733210082200,2.2023,227.0,226.92,2.203]
[1733210082396,1.6407,227.03,226.89,19.55678526]
[1733210083000,1.6407,227.03,226.93,19.55678526]
[1733210083195,3.02,227.08,226.93,19.55678526]
[1733210083598,3.02,227.08,226.9,4.6942]
[1733210083599,3.02,227.08,226.92,31.72814335]
[1733210083801,3.02,227.08,226.9,4.6942]
[1733210084002,3.02,227.08,226.92,31.72814335]
[1733210085193,3.02,227.08,226.9,1.6742]
[1733210085395,31.72814335,227.02,226.68,31.72814335]
[1733210085604,31.72814335,226.98,226.76,31.72814335]
[1733210085902,31.72814335,226.94,226.72,31.72814335]
[1733210086102,3.02,226.93,226.72,31.72814335]
[1733210086300,3.02,226.93,226.76,31.72814335]
[1733210087801,3.02,226.92,226.82,2.204]
[1733210087996,3.02,226.91,226.82,2.204]
[1733210088499,3.02,226.91,226.75,3.2337]
[1733210089295,2.2036,226.87,226.77,2.2045]
[1733210089501,3.02,226.91,226.77,2.2045]
[1733210090097,2.2037,226.85,226.77,2.2045]
[1733210090298,3.06,226.84,226.73,1.574]
[1733210090502,3.06,226.83,226.73,1.574]
[1733210092003,3.06,226.83,226.77,2.2044]
[1733210092801,3.06,226.83,226.78,2.2044]
[1733210093002,3.06,226.88,226.76,31.72814335]
[1733210093207,3.06,226.89,226.76,31.72814335]
[1733210093402,2.2032,226.9,226.81,2.204]
[1733210093602,3.06,226.9,226.81,2.204]
[1733210093801,3.06,226.9,226.82,2.204]
[1733210094004,3.06,226.9,226.8,31.72814335]
[1733210094503,3.06,226.94,226.84,31.72814335]
[1733210094801,3.06,226.96,226.88,31.72814335]
[1733210095404,2.2025,226.99,226.88,31.72814335]
[1733210095600,2.2025,226.98,226.92,2.203]
[1733210095805,3.06,227.02,226.88,31.72814335]
[1733210095998,3.202,227.1,226.88,31.72814335]
[1733210096207,3.06,227.09,226.88,31.72814335]
[1733210096407,2.202,227.03,226.94,2.2028]
[1733210096605,3.202,227.1,226.92,31.72814335]
[1733210096803,3.06,227.09,226.92,31.72814335]
[1733210097508,2.2017,227.06,226.99,2.2023]
[1733210097707,3.06,227.09,226.92,31.72814335]
[1733210098411,3.06,227.09,226.98,2.2025]
[1733210098812,3.06,227.09,226.96,31.72814335]
[1733210099009,2.2015,227.08,226.96,31.72814335]
[1733210099410,31.72814335,227.17,226.96,31.72814335]
[1733210099607,3.04,227.14,226.97,1.5664]
[1733210100713,3.04,227.13,226.97,4.6064]
[1733210100908,3.04,227.13,226.97,1.5664]
[1733210101615,3.04,227.13,226.99,31.72814335]
[1733210101909,3.04,227.13,226.97,1.5664]
[1733210102206,31.72814335,227.17,226.97,1.5664]
[1733210102408,3.04,227.14,226.99,31.72814335]
[1733210102710,3.04,227.14,226.97,1.5664]
[1733210104115,3.04,227.14,227.02,2.2021]
[1733210104310,3.04,227.14,226.97,1.5664]
[1733210104507,3.04,227.13,226.97,1.5664]
[1733210104709,34.76814335,227.13,226.95,31.72814335]
[1733210105212,2.2018,227.05,226.97,2.2025]
[1733210105413,34.76814335,227.13,226.95,31.72814335]
[1733210105609,31.72814335,227.13,226.95,31.72814335]
[1733210105810,2.2014,227.1,226.95,31.72814335]
[1733210106412,2.2014,227.1,227.02,2.202]
[1733210106605,33.23524335,227.18,226.98,3.04]
[1733210106606,3.04,227.13,226.98,3.04]
[1733210106810,3.04,227.13,227.08,2.2015]
[1733210107013,3.04,227.13,227.02,31.72814335]
[1733210107214,2.2012,227.11,227.02,31.72814335]
[1733210107516,3.04,227.13,227.02,31.72814335]
[1733210107906,13.22,227.34,226.98,3.04]
[1733210107907,1.5076,227.24,227.06,31.72814335]
[1733210108106,3.04,227.19,227.06,31.72814335]
[1733210108316,1.5076,227.24,227.1,31.72814335]
[1733210108512,4.5476,227.24,227.16,2.2007]
[1733210108713,3.04,227.24,227.16,2.2007]
[1733210108917,3.04,227.24,227.1,31.72814335]
[1733210109610,3.04,227.24,227.18,2.2005]
[1733210110218,3.04,227.24,227.06,31.72814335]
[1733210110424,3.04,227.24,227.02,31.72814335]
[1733210110425,34.76814335,227.24,227.02,31.72814335]
[1733210110616,34.76814335,227.24,227.05,2.2018]
[1733210110617,2.2011,227.12,227.05,2.2018]
[1733210110814,3.04,227.13,227.02,31.72814335]
[1733210111017,3.04,227.2,227.06,31.72814335]
[1733210111218,3.04,227.21,227.1,31.72814335]
[1733210111426,3.04,227.24,227.1,31.72814335]
[1733210111825,2.2002,227.22,227.14,2.2009]
[1733210112021,3.04,227.24,227.1,31.72814335]
[1733210112326,3.04,227.24,227.08,3.04]
[1733210112327,2.1998,227.26,227.2,2.2003]
[1733210112526,3.04,227.3,227.15,31.72814335]
[1733210113025,2.2,227.24,227.15,31.72814335]
[1733210113225,31.72814335,227.36,227.15,31.72814335]
[1733210113523,3.04,227.3,227.15,31.72814335]
[1733210113830,3.04,227.3,227.11,33.31174335]
[1733210114325,2.2002,227.21,227.14,2.2008]
[1733210114521,3.04,227.22,227.11,1.5836]
[1733210114725,3.04,227.25,227.11,1.5836]
[1733210114925,2.1999,227.24,227.17,2.2006]
[1733210115121,3.04,227.26,227.11,1.5836]
[1733210115620,3.04,227.26,227.13,19.48968414]
[1733210116025,2.1992,227.32,227.24,2.1999]
[1733210116227,3.04,227.32,227.24,2.1999]
[1733210116625,5.2392,227.32,227.24,2.1999]
[1733210116819,1.6293,227.37,227.21,19.48968414]